bitfinex/quotes_BTCUSD_20250308
["timestamp","ask_amount","ask_price","bid_price","bid_amount"]
[1741422495635,0.231547,86376.0,86370.0,0.00115764]
[1741422495834,0.011577,86375.0,86370.0,0.00115764]
[1741422496035,0.231541,86378.0,86370.0,0.00115764]
[1741422496254,0.10355642,86375.0,86370.0,0.00115768]
[1741422496428,0.10355642,86375.0,86369.0,0.804539]
[1741422496830,0.11513342,86375.0,86369.0,0.804539]
[1741422497053,0.11513342,86375.0,86369.0,0.5614]
[1741422497261,0.243128,86374.0,86369.0,0.5614]
[1741422497458,0.11513342,86375.0,86369.0,0.5614]
[1741422497676,0.10355642,86375.0,86369.0,0.80454]
[1741422498162,0.10355642,86375.0,86370.0,0.243139]
[1741422498539,0.10355642,86375.0,86371.0,0.011577]
[1741422498950,0.243102,86384.0,86378.0,0.011577]
[1741422499152,0.011576,86381.0,86375.0,0.243125]
[1741422499448,0.011576,86380.0,86375.0,0.011577]
[1741422499652,0.243111,86380.0,86374.0,0.011577]
[1741422500226,0.011576,86379.0,86374.0,0.011577]
[1741422500427,0.0001699,86382.0,86377.0,0.011577]
[1741422500649,0.0117459,86382.0,86374.0,0.011577]
[1741422501005,0.2432759,86382.0,86374.0,0.011577]
[1741422501214,0.2432759,86382.0,86374.0,0.243127]
[1741422501836,0.011576,86381.0,86376.0,0.231545]
[1741422502038,0.011576,86381.0,86375.0,0.011577]
[1741422502237,0.011576,86381.0,86376.0,0.231545]
[1741422502878,0.011576,86381.0,86374.0,0.243127]
[1741422502879,0.011576,86379.0,86374.0,0.243127]
[1741422503989,0.011576,86380.0,86374.0,0.243127]
[1741422504281,0.011576,86380.0,86375.0,0.011577]
[1741422504717,0.0001699,86382.0,86378.0,0.243115]
[1741422504927,0.243135,86372.0,86370.0,0.0003398]
[1741422505152,0.243135,86372.0,86371.0,0.1098]
[1741422505356,0.243135,86372.0,86370.0,0.0003398]
[1741422505607,0.243135,86372.0,86371.0,0.1098]
[1741422506001,0.011577,86371.0,86370.0,0.0003398]
[1741422506204,0.04758428,86371.0,86370.0,0.0003398]
[1741422510720,0.20578444,86375.0,86370.0,0.0003398]
[1741422510928,0.25489701,86376.0,86370.0,0.0003398]
[1741422510929,0.231558,86372.0,86370.0,0.0003398]
[1741422511945,0.011577,86371.0,86370.0,0.0003398]
[1741422518347,0.0188068,86372.0,86370.0,0.0003398]
[1741422518523,0.011577,86371.0,86370.0,0.0003398]
[1741422519713,0.3,86375.0,86373.0,0.011577]
[1741422519919,0.3,86375.0,86374.0,0.310251]
[1741422520095,0.3,86375.0,86374.0,0.321828]
[1741422521909,0.1036285,86376.0,86374.0,0.0787]
[1741422522117,0.243125,86375.0,86374.0,0.0787]
[1741422523201,0.243132,86373.0,86370.0,0.0003398]
[1741422523412,0.011577,86371.0,86370.0,0.0003398]
[1741422528930,0.04753284,86371.0,86370.0,0.0003398]
[1741422529352,0.03595584,86371.0,86370.0,0.0003398]
[1741422529555,0.03595584,86372.0,86370.0,0.0003398]
[1741422529729,0.03595584,86371.0,86370.0,0.0003398]
[1741422529906,0.011577,86372.0,86370.0,0.0003398]
[1741422530107,0.0001699,86375.0,86374.0,0.243128]
[1741422530312,0.03613075,86375.0,86374.0,0.243128]
[1741422530736,0.0001699,86375.0,86374.0,0.243128]
[1741422530938,0.0001699,86375.0,86371.0,0.321236]
[1741422531150,0.0001699,86375.0,86371.0,0.089677]
[1741422531346,0.0117469,86375.0,86371.0,0.0781]
[1741422531548,0.0001699,86375.0,86371.0,0.0781]
[1741422531758,0.2432959,86375.0,86371.0,0.0781]
[1741422531961,0.03596315,86374.0,86371.0,0.0781]
[1741422532371,0.04754015,86374.0,86371.0,0.0781]
[1741422532530,0.231553,86373.0,86371.0,0.0781]
[1741422533176,0.03596336,86372.0,86371.0,0.0781]
[1741422533604,0.04754036,86372.0,86370.0,0.0003398]
[1741422533826,0.03596336,86371.0,86370.0,0.0003398]
[1741422534170,0.011577,86372.0,86370.0,0.0003398]
[1741422534347,0.011577,86373.0,86370.0,0.0003398]
[1741422534554,0.03596612,86372.0,86370.0,0.0003398]
[1741422536277,0.03596612,86373.0,86370.0,0.0003398]
[1741422537969,0.011577,86372.0,86370.0,0.0003398]
[1741422538174,0.243136,86371.0,86370.0,0.0003398]
[1741422538375,0.27910212,86371.0,86370.0,0.0003398]
[1741422541668,0.04754312,86371.0,86370.0,0.0003398]
[1741422546481,0.03596612,86371.0,86370.0,0.0003398]
[1741422546700,0.26752512,86371.0,86370.0,0.0003398]
[1741422547027,0.03596612,86371.0,86370.0,0.0003398]
[1741422547786,0.04754312,86371.0,86370.0,0.0003398]
[1741422549830,0.04754312,86371.0,86367.0,0.0757398]
[1741422549831,0.011578,86368.0,86367.0,0.0003398]
[1741422550048,0.04754412,86368.0,86367.0,0.0003398]
[1741422550476,0.03596612,86368.0,86367.0,0.0003398]
[1741422551689,0.03596612,86369.0,86367.0,0.0003398]
[1741422552107,0.03596612,86369.0,86368.0,0.243145]
[1741422552294,0.03596612,86371.0,86370.0,0.011578]
[1741422552503,0.0001699,86372.0,86371.0,0.243136]
[1741422552718,0.03612963,86372.0,86371.0,0.243136]
[1741422554902,0.03612963,86372.0,86371.0,0.289636]
[1741422555505,0.03612963,86372.0,86371.0,0.38627685]
[1741422555720,0.03612963,86372.0,86371.0,0.81777685]
[1741422555721,0.0001699,86372.0,86371.0,0.81777685]
[1741422571119,0.09954601,86394.0,86372.0,0.01454085]
[1741422571367,0.011575,86393.0,86389.0,0.01454085]
[1741422571571,0.011576,86384.0,86376.0,0.011577]
[1741422571780,0.011576,86384.0,86377.0,0.35403657]
[1741422571951,0.011576,86384.0,86379.0,0.24607785]
[1741422572167,0.011575,86386.0,86380.0,0.231535]
[1741422572368,0.011575,86386.0,86380.0,0.243111]
[1741422573016,0.231505,86392.0,86381.0,0.243108]
[1741422573185,0.243088,86388.0,86381.0,0.243108]
[1741422573393,0.011575,86387.0,86381.0,0.243108]
[1741422574631,0.0001699,86384.0,86381.0,0.243108]
[1741422575374,0.0001699,86384.0,86382.0,0.011576]
[1741422576044,0.0001699,86384.0,86383.0,0.243103]
[1741422582761,0.0001699,86384.0,86383.0,0.25764385]
[1741422582932,0.0001699,86384.0,86383.0,0.70494385]
[1741422583924,9e-07,86384.0,86383.0,1.23894385]
[1741422584108,9e-07,86384.0,86383.0,1.64870385]
[1741422585190,9e-07,86384.0,86383.0,1.67370385]
[1741422585389,0.0001699,86396.0,86395.0,0.38320885]
[1741422585565,0.0001699,86396.0,86395.0,1.34866795]
[1741422590417,0.0001699,86396.0,86395.0,0.5647671]
[1741422590575,0.0001699,86396.0,86395.0,0.6745271]
[1741422590774,0.0001699,86396.0,86395.0,0.68906795]
[1741422596723,0.0001699,86396.0,86395.0,0.77176795]
[1741422599707,9e-07,86396.0,86395.0,0.84356795]
[1741422599907,9e-07,86396.0,86395.0,1.37756795]
[1741422600322,9e-07,86396.0,86395.0,1.67756795]
[1741422600719,9e-07,86396.0,86395.0,1.65256795]
[1741422600975,9e-07,86396.0,86395.0,1.67756795]
[1741422601992,9e-07,86396.0,86395.0,1.65256795]
[1741422605059,9e-07,86396.0,86395.0,1.67756795]
[1741422605436,7e-07,86406.0,86405.0,0.668841]
[1741422605610,7e-07,86406.0,86405.0,0.84334185]
[1741422606859,7e-07,86406.0,86405.0,0.81834185]
[1741422609656,7e-07,86406.0,86405.0,0.90524185]
[1741422610305,7e-07,86406.0,86405.0,1.76094095]
[1741422610656,0.01815005,86406.0,86405.0,1.76094095]
[1741422612546,0.01815005,86406.0,86405.0,1.73594095]
[1741422612757,0.01815005,86406.0,86405.0,1.43594095]
[1741422615297,0.025,86468.0,86405.0,1.43594095]
[1741422615456,0.01157,86428.0,86420.0,0.242998]
[1741422615692,0.01157,86428.0,86421.0,0.10984]
[1741422615889,0.011571,86422.0,86421.0,0.10984]
[1741422616107,0.011571,86422.0,86410.0,0.01454085]
[1741422616108,0.011571,86417.0,86410.0,0.01454085]
[1741422616350,0.011572,86414.0,86412.0,0.01454085]
[1741422616825,0.011571,86417.0,86412.0,0.01454085]
[1741422617050,0.243007,86417.0,86412.0,0.01454085]
[1741422617304,0.011572,86413.0,86407.0,0.01273017]
[1741422617510,0.011572,86410.0,86409.0,0.01454085]
[1741422617708,0.011572,86410.0,86408.0,0.10996]
[1741422617709,0.011572,86409.0,86408.0,0.10996]
[1741422618110,0.00532081,86409.0,86408.0,0.12450085]
[1741422619119,0.00532081,86409.0,86408.0,0.36753385]
[1741422619306,0.011571,86417.0,86408.0,0.36753385]
[1741422619510,0.011571,86420.0,86411.0,0.02611285]
[1741422619701,0.0452,86422.0,86421.0,0.011571]
[1741422619871,0.0452,86422.0,86418.0,0.231431]
[1741422620083,0.0452,86422.0,86416.0,0.011571]
[1741422620277,0.07492244,86422.0,86416.0,0.011571]
[1741422620479,0.06335144,86422.0,86419.0,0.011571]
[1741422620738,0.06335144,86422.0,86419.0,0.242999]
[1741422620921,0.06335144,86422.0,86421.0,0.011571]
[1741422621144,0.01815144,86422.0,86419.0,0.242999]
[1741422621345,0.01815144,86422.0,86419.0,0.231428]
[1741422621497,0.01815144,86422.0,86421.0,0.24596585]
[1741422621886,0.01815144,86422.0,86421.0,0.25753685]
[1741422623598,0.01815144,86422.0,86421.0,0.57923595]
[1741422624031,0.00011628,86430.0,86429.0,0.242973]
[1741422624153,0.00011628,86430.0,86429.0,0.13591085]
[1741422624379,0.00011628,86430.0,86429.0,0.36731385]
[1741422628192,0.0182643,86430.0,86429.0,0.36731385]
[1741422630452,0.0182643,86430.0,86429.0,0.12434085]
[1741422630647,0.05419675,86430.0,86429.0,0.13591085]
[1741422630788,0.059528,86430.0,86429.0,0.13591085]
[1741422630995,0.05419675,86430.0,86429.0,0.13591085]
[1741422631411,0.02359555,86430.0,86429.0,0.13591085]
[1741422631662,0.02359555,86430.0,86429.0,0.1098]
[1741422632111,0.01157,86429.0,86428.0,0.3216991]
[1741422632279,0.10519555,86430.0,86429.0,0.10992]
[1741422632477,0.13579787,86430.0,86429.0,0.10992]
[1741422633512,0.14736787,86430.0,86429.0,0.10992]
[1741422633713,0.242973,86429.0,86428.0,0.3216991]
[1741422633928,0.27890657,86429.0,86428.0,0.3216991]
[1741422634142,0.011571,86420.0,86416.0,0.379998]
[1741422634340,0.242992,86423.0,86418.0,0.341353]
[1741422635982,0.231414,86425.0,86419.0,0.242999]
[1741422636191,0.03593962,86424.0,86420.0,0.011571]
[1741422636636,0.03593962,86424.0,86423.0,0.01157]
[1741422636837,0.03593962,86429.0,86423.0,0.02611085]
[1741422637041,0.011572,86414.0,86400.0,0.11012]
[1741422637285,0.03593968,86413.0,86409.0,0.2317946]
[1741422637457,0.33593968,86416.0,86412.0,0.011572]
[1741422637597,0.33593968,86416.0,86409.0,0.0119116]
[1741422637598,0.03593968,86412.0,86410.0,0.011572]
[1741422637798,0.03593968,86411.0,86410.0,0.011572]
[1741422638003,0.04751168,86411.0,86410.0,0.11024]
[1741422638227,0.04751168,86411.0,86409.0,0.0003396]
[1741422638228,0.243026,86410.0,86409.0,0.0003396]
[1741422638436,0.243026,86410.0,86409.0,0.1105796]
[1741422638649,0.27894282,86410.0,86409.0,0.0003396]
[1741422638858,0.04748882,86410.0,86409.0,0.0003396]
[1741422640358,0.06114566,86410.0,86409.0,0.0003396]
[1741422646397,0.06639692,86410.0,86409.0,0.0003396]
[1741422647006,0.59785092,86410.0,86409.0,0.0003396]
[1741422651647,0.243038,86406.0,86405.0,0.0672396]
[1741422651912,0.266258,86406.0,86405.0,0.0672396]
[1741422652083,0.011574,86398.0,86397.0,0.1106]
[1741422652462,0.011573,86401.0,86397.0,0.1106]
[1741422652664,0.00525126,86398.0,86397.0,0.1106]
[1741422652877,0.011574,86400.0,86397.0,0.1106]
[1741422653251,0.00525126,86399.0,86397.0,0.1106]
[1741422653692,0.01815576,86401.0,86398.0,0.31846]
[1741422653910,0.01815576,86401.0,86400.0,0.243055]
[1741422654121,0.01815576,86401.0,86398.0,0.31846]
[1741422654322,0.00525126,86400.0,86398.0,0.31846]
[1741422654524,0.01815576,86401.0,86400.0,0.243055]
[1741422654742,0.01815576,86401.0,86398.0,0.31846]
[1741422655151,0.00525126,86400.0,86398.0,0.31846]
[1741422655703,0.01815576,86401.0,86398.0,0.31846]
[1741422656137,0.00525126,86400.0,86398.0,0.31846]
[1741422656457,0.01815576,86401.0,86398.0,0.31846]
[1741422656680,0.00525126,86400.0,86398.0,0.0754]
[1741422656859,0.01815576,86401.0,86398.0,0.0754]
[1741422657096,0.00525126,86400.0,86398.0,0.0754]
[1741422657276,0.01815576,86401.0,86398.0,0.154174]
[1741422657682,0.00525126,86400.0,86398.0,0.154174]
[1741422657906,0.01815576,86401.0,86398.0,0.154174]
[1741422658105,0.00525126,86400.0,86399.0,0.24602385]
[1741422658318,0.01815576,86401.0,86399.0,0.25759785]
[1741422658629,0.01815576,86401.0,86400.0,0.02611485]
[1741422659554,0.3,86407.0,86406.0,0.011573]
[1741422659758,0.00886844,86416.0,86407.0,0.10151385]
[1741422659961,0.02043944,86416.0,86407.0,0.21179385]
[1741422660168,0.00886844,86416.0,86407.0,0.21179385]
[1741422660369,0.01335504,86413.0,86407.0,0.21179385]
[1741422660572,0.0232495,86419.0,86407.0,0.21179385]
[1741422660870,0.011571,86422.0,86407.0,0.26145498]
[1741422661082,0.011571,86421.0,86407.0,0.26099385]
[1741422661234,0.011571,86420.0,86407.0,0.26099385]
[1741422661432,0.10320855,86412.0,86411.0,0.243024]
[1741422661661,0.10320855,86412.0,86411.0,0.25756485]
[1741422662297,0.12136127,86412.0,86411.0,0.25756485]
[1741422663083,0.12664193,86412.0,86411.0,0.25756485]
[1741422663706,0.10848921,86412.0,86411.0,0.25756485]
[1741422663915,0.10320855,86412.0,86411.0,0.25756485]
[1741422665057,0.011571,86420.0,86415.0,0.01454085]
[1741422665287,0.01332403,86422.0,86418.0,0.011571]
[1741422665462,0.011569,86433.0,86425.0,0.01157]
[1741422665694,0.3,86437.0,86430.0,0.01157]
[1741422665909,0.00028608,86431.0,86428.0,0.242976]
[1741422666058,0.00028608,86431.0,86430.0,0.242971]
[1741422666695,0.01406516,86431.0,86430.0,0.25751185]
[1741422666929,0.01843633,86431.0,86430.0,0.25751185]
[1741422670204,0.01843633,86431.0,86430.0,0.33321185]
[1741422671844,0.01843633,86431.0,86430.0,0.09024085]
[1741422672564,0.01843633,86431.0,86430.0,0.10181085]
[1741422672732,0.01843633,86431.0,86430.0,0.33321185]
[1741422672977,0.01843633,86431.0,86430.0,0.10181085]
[1741422673255,0.01843633,86431.0,86430.0,0.09139771]
[1741422679251,0.01843633,86431.0,86430.0,0.10296771]
[1741422681879,0.01843633,86431.0,86430.0,0.42466681]
[1741422682077,0.01843633,86431.0,86430.0,0.46900995]
[1741422682280,0.00028608,86431.0,86430.0,0.46900995]
[1741422685730,0.01843271,86431.0,86430.0,0.46900995]
[1741422687550,0.231336,86454.0,86439.0,0.01454085]
[1741422687761,0.00537308,86449.0,86441.0,0.01454085]
[1741422688168,0.01814624,86448.0,86441.0,0.01454085]
[1741422688771,0.00537308,86447.0,86441.0,0.01454085]
[1741422690460,0.00537308,86447.0,86440.0,0.10755133]
[1741422690839,0.00537308,86447.0,86440.0,0.10870807]
[1741422692843,0.00537308,86447.0,86441.0,0.231371]
[1741422693043,0.01814624,86448.0,86442.0,0.011568]
[1741422693255,0.01814624,86448.0,86443.0,0.231366]
[1741422693452,0.00538862,86447.0,86441.0,0.231371]
[1741422693650,0.00538862,86447.0,86443.0,0.242934]
[1741422693830,0.00538862,86447.0,86443.0,0.242931]
[1741422694035,0.242897,86457.0,86447.0,0.011567]
[1741422694253,0.2429,86456.0,86446.0,0.242925]
[1741422694433,0.011567,86451.0,86444.0,0.0824]
[1741422694826,0.011567,86449.0,86444.0,0.0824]
[1741422695485,0.00538862,86448.0,86441.0,0.00115673]
[1741422697044,0.00538862,86448.0,86443.0,0.011568]
[1741422697249,0.01814628,86447.0,86442.0,0.231369]
[1741422698219,0.00549685,86446.0,86442.0,0.231369]
[1741422700289,0.00549685,86446.0,86440.0,0.10789093]
[1741422700290,0.231369,86442.0,86440.0,0.10789093]
[1741422700526,0.242928,86445.0,86440.0,0.10789093]
[1741422700805,0.00549643,86441.0,86440.0,0.10789093]
[1741422701043,0.00549643,86444.0,86440.0,0.11945893]
[1741422701284,0.01814628,86447.0,86440.0,0.11945893]
[1741422701491,0.00549643,86443.0,86440.0,0.10789093]
[1741422701705,0.011568,86441.0,86440.0,0.0003396]
[1741422701973,0.04753547,86441.0,86440.0,0.1100996]
[1741422702221,0.0530319,86441.0,86440.0,0.1100996]
[1741422702391,0.0414639,86441.0,86440.0,0.1100996]
[1741422703670,0.2728349,86441.0,86440.0,0.1100996]
[1741422703970,0.2844029,86441.0,86440.0,0.1100996]
[1741422704134,0.0414639,86441.0,86440.0,0.1100996]
[1741422706962,0.0414639,86441.0,86440.0,0.0003396]
[1741422707220,0.05418868,86441.0,86440.0,0.1101396]
[1741422707415,0.0530319,86441.0,86440.0,0.1101396]
[1741422707664,0.05418868,86441.0,86440.0,0.1101396]
[1741422708347,0.05418868,86441.0,86440.0,0.0003396]
[1741422709404,0.43138868,86441.0,86440.0,0.0003396]
[1741422709605,0.4771319,86441.0,86440.0,0.0003396]
[1741422710007,0.3999319,86441.0,86440.0,0.0003396]
[1741422710321,0.3530319,86441.0,86440.0,0.0003396]
[1741422710886,0.37118064,86441.0,86440.0,0.0003396]
[1741422711774,0.37135044,86441.0,86440.0,0.0003396]
[1741422717404,0.01831854,86441.0,86440.0,0.0003396]
[1741422717652,0.03104332,86441.0,86440.0,0.0003396]
[1741422719147,0.03104332,86441.0,86436.0,0.09191093]
[1741422719321,0.242951,86437.0,86436.0,0.09191093]
[1741422721009,0.242978,86428.0,86423.0,0.0827]
[1741422721208,0.231411,86426.0,86424.0,0.10972]
[1741422721420,0.23036595,86426.0,86424.0,0.10972]
[1741422721842,0.242984,86426.0,86424.0,0.10972]
[1741422722063,0.242989,86423.0,86422.0,0.0003396]
[1741422722205,0.242989,86423.0,86422.0,0.11017588]
[1741422722614,0.242989,86423.0,86422.0,0.00045588]
[1741422722837,0.242989,86423.0,86422.0,0.11017588]
[1741422723038,0.25617193,86423.0,86422.0,0.11017588]
[1741422723460,0.25617193,86423.0,86422.0,0.00045588]
[1741422723667,0.25617193,86423.0,86422.0,0.11017588]
[1741422723870,0.01318293,86423.0,86422.0,0.00045588]
[1741422724068,0.01318293,86423.0,86422.0,0.01202688]
[1741422724320,0.01814923,86426.0,86424.0,0.01157]
[1741422724747,0.01814923,86426.0,86425.0,0.242984]
[1741422725039,0.01814923,86426.0,86425.0,0.372084]
[1741422725266,0.10361987,86434.0,86433.0,0.242962]
[1741422725447,0.10361987,86434.0,86433.0,0.435182]
[1741422726568,0.10361987,86434.0,86433.0,0.0825]
[1741422726909,0.231386,86436.0,86433.0,0.19222]
[1741422727118,0.011569,86436.0,86433.0,0.19222]
[1741422727472,0.0001698,86441.0,86436.0,0.011569]
[1741422727736,0.1037901,86441.0,86437.0,0.231381]
[1741422727930,0.1037901,86441.0,86436.0,0.011569]
[1741422728132,0.1037901,86441.0,86438.0,0.011568]
[1741422728339,0.1037901,86441.0,86440.0,0.011568]
[1741422729655,0.1037901,86441.0,86439.0,0.0471]
[1741422730068,0.08517731,86445.0,86439.0,0.0471]
[1741422730298,0.231372,86441.0,86439.0,0.0471]
[1741422730528,0.24294,86441.0,86439.0,0.0471]
[1741422731244,0.242939,86441.0,86439.0,0.0471]
[1741422731419,0.011568,86441.0,86439.0,0.0471]
[1741422731825,0.231373,86441.0,86435.0,0.011569]
[1741422732022,0.231366,86443.0,86436.0,0.231385]
[1741422732023,0.242934,86443.0,86436.0,0.231385]
[1741422732222,0.231373,86441.0,86435.0,0.011569]
[1741422732482,0.011568,86440.0,86433.0,0.203789]
[1741422732712,0.01814739,86442.0,86436.0,0.011569]
[1741422732882,0.01814739,86442.0,86439.0,0.011568]
[1741422733125,0.02971539,86442.0,86437.0,0.23138]
[1741422733272,0.242939,86441.0,86436.0,0.011569]
[1741422733874,0.242939,86441.0,86435.0,0.011569]
[1741422734081,0.242939,86441.0,86436.0,0.10972]
[1741422734706,0.242939,86441.0,86436.0,0.341104]
[1741422735312,0.02971539,86442.0,86436.0,0.341104]
[1741422735481,0.231371,86441.0,86436.0,0.10972]
[1741422735831,0.011568,86440.0,86436.0,0.10972]
[1741422735985,0.011568,86440.0,86437.0,0.10972]
[1741422737714,0.0117379,86441.0,86437.0,0.10972]
[1741422737895,0.231377,86439.0,86437.0,0.10972]
[1741422738275,0.011568,86438.0,86437.0,0.10972]
[1741422738790,0.011568,86438.0,86433.0,0.0825]
[1741422739001,0.011568,86439.0,86434.0,0.341109]
[1741422739602,0.011568,86439.0,86434.0,0.10972]
[1741422739784,0.011568,86439.0,86434.0,0.34111]
[1741422739982,0.242945,86439.0,86434.0,0.10972]
[1741422740632,0.011568,86440.0,86434.0,0.352677]
[1741422740833,0.2431089,86441.0,86434.0,0.352677]
[1741422740834,0.2315429,86441.0,86436.0,0.242954]
[1741422741001,0.011568,86440.0,86435.0,0.011569]
[1741422741209,0.011568,86439.0,86434.0,0.10972]
[1741422741403,0.011568,86439.0,86433.0,0.0825]
[1741422741727,0.011568,86440.0,86434.0,0.121289]
[1741422742050,0.2431109,86441.0,86435.0,0.242954]
[1741422742275,0.011568,86440.0,86434.0,0.10972]
[1741422742615,0.011568,86440.0,86434.0,0.121289]
[1741422742820,0.0001699,86441.0,86437.0,0.231382]
[1741422743168,0.242945,86439.0,86434.0,0.10972]
[1741422743309,0.011568,86438.0,86434.0,0.10972]
[1741422743514,0.011568,86438.0,86434.0,0.34111]
[1741422743749,0.011568,86438.0,86434.0,0.10972]
[1741422743948,0.0001699,86441.0,86436.0,0.242951]
[1741422744624,0.0001699,86441.0,86434.0,0.10972]
[1741422744625,0.011568,86439.0,86434.0,0.10972]
[1741422744798,0.011568,86438.0,86434.0,0.23139]
[1741422745104,0.011568,86439.0,86435.0,0.10972]
[1741422745323,0.0001699,86441.0,86437.0,0.231379]
[1741422745547,0.0117379,86441.0,86436.0,0.242954]
[1741422746129,0.0001699,86441.0,86437.0,0.231379]
[1741422746535,0.2431109,86441.0,86436.0,0.011569]
[1741422746736,0.242944,86440.0,86435.0,0.10972]
[1741422746960,0.231379,86438.0,86436.0,0.10972]
[1741422747495,0.0001699,86441.0,86440.0,0.242942]
[1741422747869,0.0001699,86441.0,86440.0,0.323142]
[1741422748979,0.0001699,86441.0,86440.0,0.0802]
[1741422749121,0.0001699,86441.0,86440.0,0.18992]
[1741422751006,0.0001699,86441.0,86440.0,0.421294]
[1741422751161,0.0001699,86441.0,86440.0,0.432862]
[1741422752114,0.0001699,86441.0,86440.0,0.18992]
[1741422753406,0.0001699,86441.0,86440.0,0.432862]
[1741422754847,0.0001699,86441.0,86440.0,0.323142]
[1741422755210,0.0001699,86441.0,86440.0,0.432862]
[1741422755440,0.0001699,86441.0,86440.0,0.478562]
[1741422756203,0.0001699,86441.0,86440.0,0.49310285]
[1741422758106,0.0001699,86441.0,86440.0,0.38338285]
[1741422758246,0.0001699,86441.0,86440.0,0.478562]
[1741422758444,0.0001699,86441.0,86440.0,0.18992]
[1741422758629,0.0001699,86441.0,86440.0,0.311574]
[1741422758841,0.0001699,86441.0,86440.0,0.18992]
[1741422759208,0.0001699,86441.0,86440.0,0.432862]
[1741422759399,0.01831581,86441.0,86440.0,0.432862]
[1741422760342,0.242922,86448.0,86442.0,0.011568]
[1741422760575,0.242925,86447.0,86442.0,0.011568]
[1741422760781,0.231355,86447.0,86440.0,0.0802]
[1741422760984,0.231355,86447.0,86428.0,0.01454085]
[1741422760985,0.231361,86445.0,86443.0,0.10972]
[1741422761263,0.231361,86445.0,86434.0,0.011569]
[1741422761264,0.011568,86442.0,86436.0,0.242954]
[1741422761462,0.231371,86441.0,86437.0,0.10972]
[1741422762176,0.242939,86441.0,86437.0,0.10972]
[1741422762738,0.24294,86441.0,86437.0,0.10972]
[1741422763133,0.011568,86442.0,86437.0,0.10972]
[1741422763334,0.11526839,86443.0,86437.0,0.10972]
[1741422763564,0.11526839,86443.0,86437.0,0.3411]
[1741422763770,0.10370039,86443.0,86438.0,0.011568]
[1741422764045,0.10370039,86443.0,86442.0,0.325637]
[1741422764190,0.02784172,86457.0,86452.0,0.011567]
[1741422764191,0.10370039,86455.0,86452.0,0.011567]
[1741422764551,0.10370039,86455.0,86454.0,0.094266]
[1741422764738,0.10370039,86455.0,86453.0,0.10972]
[1741422765116,0.10370039,86455.0,86454.0,0.242902]
[1741422765331,0.10370039,86455.0,86453.0,0.10972]
[1741422765729,0.231336,86454.0,86444.0,0.314061]
[1741422765920,0.231336,86454.0,86446.0,0.10972]
[1741422766252,0.011567,86452.0,86446.0,0.341077]
[1741422766395,0.231336,86454.0,86447.0,0.011567]
[1741422766597,0.11526639,86455.0,86448.0,0.242919]
[1741422767185,0.01814518,86453.0,86448.0,0.242919]
[1741422767398,0.011567,86451.0,86446.0,0.10972]
[1741422767781,0.242909,86452.0,86446.0,0.352644]
[1741422767782,0.011567,86452.0,86446.0,0.352644]
[1741422768020,0.01814518,86453.0,86448.0,0.231352]
[1741422768227,0.01814518,86453.0,86448.0,0.242919]
[1741422768434,0.01814518,86453.0,86450.0,0.242914]
[1741422769020,0.01814518,86453.0,86451.0,0.011567]
[1741422769173,0.01814518,86453.0,86448.0,0.242919]
[1741422769742,0.011567,86452.0,86449.0,0.10972]
[1741422770585,0.24948418,86453.0,86449.0,0.10972]
[1741422770586,0.01814518,86453.0,86449.0,0.10972]
[1741422770817,0.011567,86450.0,86449.0,0.10972]
[1741422771003,0.011568,86445.0,86444.0,0.0827]
[1741422771228,0.011568,86445.0,86444.0,0.19238]
[1741422771620,0.242928,86445.0,86444.0,0.19238]
[1741422771818,0.011568,86444.0,86443.0,0.3216991]
[1741422772147,0.011568,86444.0,86443.0,0.4313791]
[1741422772349,0.0475898,86444.0,86443.0,0.4313791]
[1741422772776,0.02971419,86444.0,86443.0,0.4313791]
[1741422772989,0.01814619,86444.0,86443.0,0.4313791]
[1741422773767,0.01814619,86444.0,86443.0,0.10968]
[1741422774330,0.01814619,86444.0,86443.0,0.121248]
[1741422775067,0.01814619,86444.0,86443.0,0.201348]
[1741422776935,0.01814619,86444.0,86443.0,0.249148]
[1741422777563,0.01814619,86444.0,86443.0,0.139468]
[1741422777879,0.01814619,86444.0,86443.0,0.25064449]
[1741422778080,0.01814619,86444.0,86443.0,0.2494878]
[1741422779610,0.01814619,86444.0,86443.0,0.5711869]
[1741422779995,0.01814619,86444.0,86443.0,0.4615069]
[1741422780193,0.01814619,86444.0,86443.0,0.5711869]
[1741422780595,0.01814619,86444.0,86443.0,0.4615069]
[1741422780804,0.01814619,86444.0,86443.0,0.5711869]
[1741422782312,0.10375817,86449.0,86448.0,0.242919]
[1741422783352,0.10375817,86449.0,86448.0,0.352599]
[1741422785816,0.12190355,86449.0,86448.0,0.352599]
[1741422786796,0.10375817,86449.0,86448.0,0.352599]
[1741422787966,0.10375817,86450.0,86448.0,0.352599]
[1741422788992,0.10375817,86450.0,86448.0,0.341032]
[1741422789982,0.10087229,86450.0,86448.0,0.341032]
[1741422790208,0.11901765,86450.0,86448.0,0.341032]
[1741422790969,0.11901765,86450.0,86448.0,0.10968]
[1741422792579,0.35036665,86450.0,86448.0,0.10968]
[1741422792759,0.01272378,86449.0,86448.0,0.10968]
[1741422793168,0.011567,86447.0,86443.0,0.3220389]
[1741422793410,0.242919,86448.0,86444.0,0.10968]
[1741422793612,0.011568,86445.0,86444.0,0.10968]
[1741422793812,0.011567,86447.0,86444.0,0.10968]
[1741422794241,0.011567,86447.0,86443.0,0.3220389]
[1741422794242,0.011568,86445.0,86443.0,0.3220389]
[1741422794508,0.231363,86444.0,86443.0,0.3220389]
[1741422794850,0.011568,86444.0,86443.0,0.3220389]
[1741422795011,0.10087229,86450.0,86444.0,0.242931]
[1741422795210,0.28014416,86449.0,86445.0,0.10968]
[1741422795412,0.03607038,86448.0,86445.0,0.10968]
[1741422795624,0.03607038,86448.0,86447.0,0.011567]
[1741422795824,0.10087229,86450.0,86448.0,0.011567]
[1741422796054,0.10087229,86450.0,86447.0,0.011567]
[1741422797655,0.07381302,86452.0,86447.0,0.011567]
[1741422797872,0.00115678,86453.0,86450.0,0.242913]
[1741422798076,0.01814562,86451.0,86450.0,0.242914]
[1741422798281,0.01814562,86451.0,86448.0,0.306352]
[1741422798657,0.01814562,86451.0,86450.0,0.242914]
[1741422799662,0.01814562,86451.0,86448.0,0.075]
[1741422799985,0.011567,86450.0,86448.0,0.075]
[1741422800186,0.01814562,86451.0,86448.0,0.075]
[1741422800731,0.01814562,86451.0,86449.0,0.10968]